Cogmind - Beta 13 @@@ ROGUE MODE // 2024.07.05 @ 21:36:19 Player: Dosh Result: Destroyed by X-87 Electro with Compact HERF Cannon Performance ------------- Evolutions (7) 3500 Regions Visited (23) 4600 Robots Destroyed (279) 1395 Value Destroyed (9226) 9226 Prototype IDs (39) 780 Alien Tech Used (0) 0 Bonus (5792) 5792 TOTAL SCORE: 25293 Bonus ------- High Alert Combat Kills 754 Follower Combat Kills 3255 Entered Garrisons 800 Used RIF Installer 2500 Aligned with FarCom 300 Friendly Fire -1817 Cogmind --------- Core Integrity 0/1300 Matter 215/300 Energy 99/100 System Corruption 4% Temperature Cool (0) Movement Core (50) Location -3/Armory Parts ------- > --- POWER (2) -------- (None) > --- PROPULSION (6) --- (None) > --- UTILITY (10) ----- (None) > --- WEAPON (3) ------- (None) > --- INVENTORY (5) ---- Light Antimatter Reactor Particle Reactor Biometal Leg Quantum Rifle Heavy Machine Gun Peak State ------------ > --- POWER ------------ Antimatter Reactor > --- PROPULSION ------- Field Propulsion Drive Field Propulsion Drive Field Propulsion Drive Field Propulsion Drive Field Propulsion Drive > --- UTILITY ---------- Advanced Power Amplifier Advanced Visual Processing Unit Long-range Sensor Array Improved Terrain Scanner Makeshift Terrain Scan Processor Advanced Terrain Scan Processor Improved Core Shielding Advanced System Shield > --- WEAPON ----------- Heavy Linear Accelerator > --- INVENTORY -------- Micro-nuke Launcher Improved Remote Datajack Improved Plasma Cutter [Rating: 93] Favorites ----------- Power Cooled Ion Engine Engine Cooled Ion Engine Power Core Enhanced Fission Core Reactor Light Particle Reactor Propulsion Light Treads Treads Light Treads Leg Biometal Leg Wheel Compact Wheel Hover Unit Gravmag System Flight Unit Field Propulsion Drive Utility High-capacity Storage Unit Device Cooling System Storage High-capacity Storage Unit Processor Advanced Visual Processing Unit Hackware Relay Coupler [NC] Protection Medium Armor Plating Weapon Advanced Plasma Cannon Energy Gun AWS/Thermal Energy Cannon Advanced Plasma Cannon Ballistic Gun Enhanced Autogun Ballistic Cannon Light Cannon Launcher Mini Smartbomb Launcher Special Weapon Remote Datajack Impact Weapon Heavy Flail Piercing Weapon Force Lance Special Melee Weapon Improved Datajack Build | -11 -10 -10 -9 -9 -9 -8 -8 -8 -8 -8 -7 -7 -7 -7 -7 -7 -6 -5 -5 -5 -4 -3 -3 ------- Run | Yrd Mat Min Mat Min Exi Min Mat Gar Mat Gar Fac Was Fac Gar Fac Gar Fac Fac Upp Upp Fac Res Arm Slots Evolved 14 | . . . 2 . . . 2 . . . 2 . . . . . 2 2 . . 2 2 . Power 1 | . . . . . . . . . . . . . . . . . . 1 . . . . . Propulsion 4 | . . . 1 . . . . . . . . . . . . . . 1 . . 2 . . Utility 8 | . . . 1 . . . 2 . . . 2 . . . . . 1 . . . . 2 . Weapon 1 | . . . . . . . . . . . . . . . . . 1 . . . . . . Parts Attached 327 | 7 12 1 31 2 3 1 8 24 23 28 41 8 9 21 20 21 11 8 1 . 27 19 1 Power 24 | 1 1 1 1 . . . . 1 2 . 2 . 1 1 . 1 . 1 . . 5 6 . Engine 15 | 1 1 1 1 . . . . 1 2 . 2 . 1 1 . 1 . 1 . . 2 . . Core 3 | . . . . . . . . . . . . . . . . . . . . . 2 1 . Reactor 6 | . . . . . . . . . . . . . . . . . . . . . 1 5 . Propulsion 71 | 2 2 . 13 1 2 . 2 5 6 3 6 . 2 2 2 . 2 3 . . 9 8 1 Treads 31 | 2 . . 13 1 2 . 2 5 3 . . . . . . . . . . . 3 . . Leg 1 | . . . . . . . . . . . . . . . . . . . . . . 1 . Wheel 20 | . 2 . . . . . . . 3 1 6 . 2 2 2 . 2 . . . . . . Hover 6 | . . . . . . . . . . 2 . . . . . . . 3 . . 1 . . Flight 13 | . . . . . . . . . . . . . . . . . . . . . 5 7 1 Utility 101 | 1 3 . 6 1 . 1 3 8 5 9 17 3 3 8 11 9 5 1 1 . 5 1 . Device 23 | . 1 . . . . . 1 3 4 4 3 1 1 . 1 1 . . . . 3 . . Storage 7 | 1 1 . 2 . . . . . 1 1 . . . . 1 . . . . . . . . Processor 7 | . . . . . . . . 1 . . 1 1 . . . . 1 . 1 . 1 1 . Hackware 46 | . . . 1 . . . 1 2 . 4 10 . 2 7 8 7 3 1 . . . . . Protection 18 | . 1 . 3 1 . 1 1 2 . . 3 1 . 1 1 1 1 . . . 1 . . Artifact . | . . . . . . . . . . . . . . . . . . . . . . . . Weapon 131 | 3 6 . 11 . 1 . 3 10 10 16 16 5 3 10 7 11 4 3 . . 8 4 . Energy Gun 8 | 2 1 . . . 1 . 1 . . . . . . . . . . . . . . 3 . Energy Cannon 19 | . . . . . . . . . 2 . 5 2 1 3 2 2 . 1 . . 1 . . Ballistic Gun 33 | 1 3 . 9 . . . . 5 5 6 4 . . . . . . . . . . . . Ballistic Cannon 13 | . 1 . 1 . . . . . . . . . . . 3 . 2 2 . . 4 . . Launcher 7 | . 1 . . . . . . . . 1 1 1 . . . 2 . . . . 1 . . Special Weapon 36 | . . . . . . . . 2 . 6 6 1 2 7 2 7 2 . . . 1 . . Impact Weapon 8 | . . . 1 . . . 1 2 . 2 . 1 . . . . . . . . . 1 . Slashing Weapon . | . . . . . . . . . . . . . . . . . . . . . . . . Piercing Weapon 1 | . . . . . . . . . . . . . . . . . . . . . 1 . . Special Melee Weapon 6 | . . . . . . . 1 1 3 1 . . . . . . . . . . . . . Unidentified Prototypes 8 | . . . 2 . . . . . 1 . 1 1 . . . . 1 . . . . 2 . Parts Lost 88 | . 4 2 3 1 . 1 2 6 . 2 6 . 1 3 4 3 24 1 4 . 11 4 6 Power 10 | . 1 1 . . . . . 1 . . 1 . . . . . 1 . 1 . 3 . 1 Propulsion 31 | . . . . . . . 2 2 . 2 3 . 1 1 1 . 3 . 3 . 5 3 5 Utility 31 | . . 1 1 1 . 1 . 2 . . 1 . . 2 2 1 16 . . . 3 . . Weapon 16 | . 3 . 2 . . . . 1 . . 1 . . . 1 2 4 1 . . . 1 . Highest Loss Streak 19 | . 2 2 1 1 . 1 1 3 . 2 3 . 1 1 2 1 19 1 3 . 8 2 7 To Critical Strikes . | . . . . . . . . . . . . . . . . . . . . . . . . Average Slot Usage (%) 84 | . 98 78 99 96 82 88 83 88 98 89 82 84 84 81 78 74 59 33 20 17 52 19 25 Engine 8 | . 13 5 11 11 11 11 9 9 9 9 6 7 7 6 7 6 5 1 . . 2 . . Treads 14 | . 26 . 30 33 33 33 26 27 23 . . . . . . . . . . . 2 . . Wheel 7 | . 1 28 2 . . . . . 3 17 14 15 15 14 13 15 10 . . . . . . Hover 1 | . . . . . . . . . . 8 1 . . . . . . 15 4 . . . . Device 3 | . 5 . . . . . . . 8 4 10 10 10 7 3 . . . . . 6 . . Storage 8 | . 14 14 11 11 11 11 9 9 9 9 7 7 7 7 6 7 5 . . . . . . Hackware 14 | . . . 10 4 . . 8 13 25 22 20 19 21 27 26 28 21 4 5 5 4 . . Protection 7 | . 7 2 10 13 22 22 20 14 . . 1 2 5 . 5 . 4 . . . 4 . . Energy Gun 1 | . 7 . . . 4 11 8 2 . . . . . . . . . . . . . . . Energy Cannon 2 | . . . . . . . . . 8 . 5 8 7 8 4 6 . . . . . . . Ballistic Gun 6 | . 13 . 18 22 . . . 11 8 12 5 . . . . . . . . . . . . Ballistic Cannon 1 | . 6 14 1 . . . . . . . . . . . 1 . 5 3 . . . . . Special Weapon 1 | . . . . . . . . 1 . 5 2 1 5 5 5 2 3 . . . . . . Naked Turns 15 | . . . . . . . . . . . . . . . . . . . . . 2 11 2 Heaviest Build 240 | 14 58 58 61 62 64 64 67 66 166 221 240 233 232 229 229 183 206 34 7 . 47 30 30 Greatest Support 225 | 40 40 26 63 63 63 63 63 67 67 36 44 44 44 44 44 44 44 33 33 3 225 43 45 Greatest Overweight (x) 22 | . 3 2 2 . 1 1 1 1 6 17 22 5 8 7 8 4 7 8 . . 3 . . Average Overweight (x) 2 | . 1 1 . . . 1 . . . 7 6 5 5 5 6 3 2 1 . . . . . Largest Inventory Capacity 35 | 8 20 20 20 20 20 20 20 20 30 35 35 35 35 35 35 30 30 5 5 5 5 5 5 Average Capacity 24 | 7 19 20 20 20 20 20 20 20 21 30 35 35 35 35 33 30 26 5 5 5 5 5 5 Most Carried 35 | 2 16 16 20 20 20 20 20 20 22 34 35 34 35 35 34 30 30 5 3 3 5 5 5 Average Carried 21 | 1 9 15 18 20 19 19 17 19 20 27 33 31 32 34 28 26 22 1 2 3 4 2 5 Final Capacity 35 | 8 20 20 20 20 20 20 20 20 30 35 35 35 35 35 30 30 5 5 5 5 5 5 5 Final Carried 35 | 2 16 15 20 20 20 19 18 20 22 34 32 31 35 34 26 30 3 2 3 3 . 5 5 Class Distribution -------------------- 42% | Mutant 31% | Bothacker-Mutant 13% | Botlord-Mutant 5% | Scavenger-Mutant Dominant Class ---------------- Mutant | -10/Materials Mutant | -10/Mines Mutant | -9/Materials Mutant | -9/Mines Mutant | -9/Exiles Mutant | -8/Mines Mutant | -8/Materials Scavenger-Mutant | -8/Garrison Bothacker-Mutant | -8/Materials Bothacker-Mutant | -8/Garrison Bothacker-Mutant | -7/Factory Bothacker-Mutant | -7/Waste Bothacker-Mutant | -7/Factory Botlord-Mutant | -7/Garrison Botlord-Mutant | -7/Factory Botlord-Mutant | -7/Garrison Botlord-Tank | -6/Factory Mutant | -5/Factory Mutant | -5/Upper Caves Mutant | -5/Upper Caves Scout | -4/Factory Mutant | -3/Research Mutant | -3/Armory Resources | -11 -10 -10 -9 -9 -9 -8 -8 -8 -8 -8 -7 -7 -7 -7 -7 -7 -6 -5 -5 -5 -4 -3 -3 ----------- Run | Yrd Mat Min Mat Min Exi Min Mat Gar Mat Gar Fac Was Fac Gar Fac Gar Fac Fac Upp Upp Fac Res Arm Matter Collected 7767 | 224 562 62 1000 291 . 40 90 441 607 724 773 345 143 423 592 521 182 133 253 . 287 74 . Remotely . | . . . . . . . . . . . . . . . . . . . . . . . . Salvage Created 9935 | . 951 108 1894 391 . 306 830 927 826 628 720 499 128 250 576 244 207 148 . . 157 145 . Parts 557 | . 54 3 130 21 . 13 29 62 55 45 41 5 8 10 30 14 12 4 . . 9 12 . Haulers Intercepted 6 | . 1 . 5 . . . . . . . . . . . . . . . . . . . . Recyclers Shooed 5 | . 1 . 1 . . . . . 2 . . . . . 1 . . . . . . . . Parts Field Recycled . | . . . . . . . . . . . . . . . . . . . . . . . . Retrieved Matter . | . . . . . . . . . . . . . . . . . . . . . . . . Parts Self-Destructed 9 | . . . . . . . . . . . . . . . . . . . 9 . . . . Prevented . | . . . . . . . . . . . . . . . . . . . . . . . . Kills | -11 -10 -10 -9 -9 -9 -8 -8 -8 -8 -8 -7 -7 -7 -7 -7 -7 -6 -5 -5 -5 -4 -3 -3 ------- Run | Yrd Mat Min Mat Min Exi Min Mat Gar Mat Gar Fac Was Fac Gar Fac Gar Fac Fac Upp Upp Fac Res Arm Combat Hostiles Destroyed 213 | . 17 6 33 11 . 10 15 24 10 18 19 2 2 5 11 8 8 . . . 10 4 . Melee 3 | . . . . . . . . . . . . . . . . . . . . . 3 . . Guns 127 | . 12 . 33 11 . 10 15 24 1 16 2 . . . . . . . . . . 3 . Cannons 49 | . 5 2 . . . . . . 8 . 3 2 2 5 11 . 8 . . . 3 . . AOE 33 | . . 4 . . . . . . . 2 14 . . . . 8 . . . . 4 1 . Classes Destroyed 18 | . 8 . 2 . . 1 2 . 1 1 1 1 . 1 . . . . . . . . . Worker 16 | . 3 . 2 . . . . . 6 . 2 . . . 1 . . . . . 1 1 . Builder 6 | . 1 . 1 . . . . . 1 . 3 . . . . . . . . . . . . Tunneler 4 | . . . . . . 1 . . . . . . 1 . 1 . . 1 . . . . . Hauler 6 | . 1 . 5 . . . . . . . . . . . . . . . . . . . . Recycler 11 | . 3 . 2 . . . . . 1 . 2 . . . 2 . . 1 . . . . . Operator 4 | . 3 . 1 . . . . . . . . . . . . . . . . . . . . Watcher 13 | . 2 . 4 . . . 2 . 3 . 1 . . . . . 1 . . . . . . Swarmer 57 | . 3 3 5 3 . 7 . 9 . 8 3 . . 2 . 3 . . . . 7 4 . Cutter 2 | . . . . . . . . . . . . . . 2 . . . . . . . . . Grunt 95 | . 14 3 19 8 . 3 10 8 2 4 4 . 2 1 9 5 3 . . . . . . Brawler 4 | . . . 1 . . . 1 . . . . . . 1 . . 1 . . . . . . Duelist 3 | . . . . . . . 1 . . . 1 . . 1 . . . . . . . . . Sentry 26 | . . . 8 . . . 2 6 5 4 . . . . 1 . . . . . . . . Demolisher 2 | . . . . . . . . . . . 1 . . . . . 1 . . . . . . Specialist 3 | . . . . . . . . . 1 . 1 . . . . . 1 . . . . . . Hunter 8 | . . . . . . . 1 1 2 . 4 . . . . . . . . . . . . Programmer 14 | . . . . . . . . . . 3 5 . . . 1 . 2 . . . 3 . . Compactor 2 | . . . . . . . . . . . . 2 . . . . . . . . . . . Thug 1 | . . . . . . . . . . . . . . 1 . . . . . . . . . Martyr 2 | . . . . . . . . . . . . 2 . . . . . . . . . . . Best Kill Streak 14 | . 4 6 8 3 . 4 6 6 3 4 14 1 3 2 2 7 4 1 . . 4 3 . Combat Bots Only 12 | . 4 6 4 3 . 4 6 6 2 4 12 1 2 2 2 7 4 . . . 4 2 . Max Kills in Single Turn 6 | . 1 2 1 1 . 1 1 1 1 1 6 1 2 1 1 3 1 1 . . 4 1 . Gunslinging . | . . . . . . . . . . . . . . . . . . . . . . . . Exploded 5 | . . 2 . . . . . . . 1 5 . . . . 3 . . . . 4 1 . Melee 1 | . . . . . . . . . . . . . . . . . . . . . 1 . . Uniques/NPCs Destroyed . | . . . . . . . . . . . . . . . . . . . . . . . . Combat | -11 -10 -10 -9 -9 -9 -8 -8 -8 -8 -8 -7 -7 -7 -7 -7 -7 -6 -5 -5 -5 -4 -3 -3 -------- Run | Yrd Mat Min Mat Min Exi Min Mat Gar Mat Gar Fac Was Fac Gar Fac Gar Fac Fac Upp Upp Fac Res Arm Hostile Shots Fired 1499 | . 125 14 113 50 . 31 26 111 54 66 113 . 9 66 53 51 93 39 32 1 253 97 102 Missed 517 | . 33 2 32 14 . 8 5 35 15 20 35 . 1 20 18 14 29 17 12 . 109 43 55 Damage Taken 15877 | . 989 182 1016 470 . 216 319 1116 590 580 1228 38 138 677 703 626 1605 378 386 6 2263 1135 1216 Core 3932 | . 187 54 173 110 . 19 64 151 59 83 149 3 29 65 16 168 273 94 300 6 616 671 642 Absorbed by Shields 300 | . . . . . . . . . . 22 171 16 68 14 . 9 . . . . . . . Redirected to Shielding 90 | . . . . . . 3 14 7 . . . . . . . . . . . . 66 . . Ignored by Resistances 45 | . . . . . . . . . . . . . . . 37 8 . . . . . . . Regen/Repaired (Parts) 1312 | . . . 478 . . . . . 17 . 6 237 28 25 205 274 42 . . . . . . Core Remaining (%) 46 | 100 . 3 . . . 24 . . . 35 . . . . . 38 67 . . 60 46 . . Volleys Fired 798 | . 112 7 99 41 . . . 56 71 49 74 29 12 60 68 50 30 14 . . 11 15 . Largest 2 | . 2 2 2 2 . . . 2 2 2 2 2 2 2 1 1 1 1 . . 1 1 . Hottest 196 | . 85 65 46 46 . . . 46 133 50 196 196 196 196 98 98 83 83 . . 88 94 . Shots Fired 1381 | . 218 13 197 81 . 24 56 138 133 95 104 41 14 74 71 52 30 14 . . 11 15 . Gun 893 | . 174 . 196 81 . 24 56 137 72 89 49 . . . . . . . . . . 15 . Cannon 314 | . 44 7 1 . . . . . 61 . 18 32 5 31 41 27 23 14 . . 10 . . Launcher 22 | . . 6 . . . . . . . 2 6 . . . . 7 . . . . 1 . . Special 152 | . . . . . . . . 1 . 4 31 9 9 43 30 18 7 . . . . . . Kinetic 817 | . 158 7 197 81 . . . 110 72 89 49 . . . 12 . 23 11 . . 8 . . Thermal 393 | . 60 . . . . 24 56 28 61 . 18 32 5 45 29 27 . . . . . 8 . Explosive 22 | . . 6 . . . . . . . 2 6 . . . . 7 . . . . 1 . . Electromagnetic 12 | . . . . . . . . . . . . . . . . . . 3 . . 2 7 . Robot Hit Streak 31 | . 16 2 17 13 . 22 25 31 10 9 4 11 5 14 6 6 8 1 . . 6 8 . Robot Miss Streak 5 | . 5 2 2 3 . 1 1 4 4 3 4 2 2 5 2 2 2 3 . . 4 3 . Penetration Max 1 | . . . . . . . . . 1 . . . . . . . . . . . . . . Secondary Targets 6 | . 2 . . 2 . . . 1 . 1 . . . . . . . . . . . . . Max Gunslinging Chain 1 | . 1 . . 1 . . . 1 . 1 . . . . . . . . . . . . . Autonomous 108 | . . . . . . 24 56 28 . . . . . . . . . . . . . . . Shots Hit Robots 876 | . 134 4 134 55 . 23 53 99 71 59 55 41 9 35 46 17 22 3 . . 8 8 . Core Hits 414 | . 53 8 65 19 . 14 26 38 33 24 63 5 3 11 13 13 8 2 . . 9 7 . Critical Kills 1 | . . . . . . . . . 1 . . . . . . . . . . . . . . Critical Parts Destroyed 6 | . . . . 1 . . . . 4 1 . . . . . . . . . . . . . Critical Strikes 26 | . 7 . . 1 . . . . 5 1 . 1 . 1 4 . 4 . . . 2 . . Burn 5 | . 5 . . . . . . . . . . . . . . . . . . . . . . Destroy 7 | . . . . 1 . . . . 5 1 . . . . . . . . . . . . . Blast 12 | . 2 . . . . . . . . . . . . . 4 . 4 . . . 2 . . Smash 1 | . . . . . . . . . . . . 1 . . . . . . . . . . . Sever 1 | . . . . . . . . . . . . . . 1 . . . . . . . . . Melee Attacks 34 | . . . 2 . . . 2 7 5 5 . 8 . . . . . . . . 2 . 3 Impact 20 | . . . 2 . . . 2 2 . 3 . 8 . . . . . . . . . . 3 Slashing . | . . . . . . . . . . . . . . . . . . . . . . . . Piercing 2 | . . . . . . . . . . . . . . . . . . . . . 2 . . Sneak Attacks 18 | . . . 2 . . . . 5 3 . . 8 . . . . . . . . . . . Combat Hostiles 1 | . . . . . . . . . 1 . . . . . . . . . . . . . . Follow-up Attacks . | . . . . . . . . . . . . . . . . . . . . . . . . Damage Inflicted 23431 | . 1833 367 2364 885 . 753 1557 1828 1710 1310 3099 1642 124 647 1354 1091 1365 232 . . 885 385 . Guns 10588 | . 1208 . 2114 843 . 711 1539 1828 513 1044 572 . . . . . . . . . . 216 . Cannons 7138 | . 616 54 21 . . . . . 1118 . 244 1002 108 539 1342 69 1272 221 . . 532 . . Explosions 4417 | . . 313 . . . . . . 30 266 2283 . . . . 1022 . . . . 334 169 . Melee 820 | . . . 180 . . . . . . . . 640 . . . . . . . . . . . Ramming 401 | . 9 . 49 42 . 42 18 . 49 . . . 16 41 12 . 93 11 . . 19 . . Kinetic 10186 | . 1346 54 2135 843 . . . 1026 513 1044 572 . . . 701 . 1272 221 . . 459 . . Thermal 7626 | . 478 . . . . 711 1539 802 1118 . 244 1002 108 606 641 69 . . . . . 308 . Explosive 4218 | . . 313 . . . . . . . 266 2283 . . . . 1022 . . . . 334 . . Electromagnetic 180 | . . . . . . . . . 30 . . . . . . . . . . . 73 77 . Impact 820 | . . . 180 . . . . . . . . 640 . . . . . . . . . . . Slashing . | . . . . . . . . . . . . . . . . . . . . . . . . Piercing . | . . . . . . . . . . . . . . . . . . . . . . . . Highest Corruption 7 | . 1 1 1 1 1 1 . . 2 5 4 4 5 7 7 7 7 . 2 2 1 . 3 Average Corruption 3 | . 1 1 1 1 1 1 . . 1 4 3 4 4 6 7 7 4 . 1 2 1 . 1 Corruption Purged . | . . . . . . . . . . . . . . . . . . . . . . . . Corruption Blocked . | . . . . . . . . . . . . . . . . . . . . . . . . Effects 310 | . 7 2 13 10 4 7 . . 19 39 33 18 23 33 49 43 4 . . . 5 . 1 Message Errors 77 | . 3 . 2 3 3 1 . . 2 8 10 4 6 9 15 10 1 . . . . . . Matter Fused 68 | . 1 . 4 2 1 . . . 3 11 7 3 3 11 13 7 . . . . 1 . 1 Heat Flow Errors 34 | . 1 1 1 1 . 1 . . 4 6 3 1 2 3 5 2 . . . . 3 . . Energy Discharges 42 | . . . 2 1 . 2 . . 4 4 6 2 4 2 5 8 1 . . . 1 . . Parts Rejected 6 | . . . . . . . . . 1 . . 1 1 1 . 1 1 . . . . . . Parts Fused 4 | . . 1 . . . 1 . . . . . 1 1 . . . . . . . . . . Data Loss (minor) 39 | . . . 2 1 . 1 . . 4 5 1 4 3 5 4 9 . . . . . . . Data Loss (major) 13 | . 1 . . . . 1 . . . 2 2 . 2 . 2 3 . . . . . . . Misfires 16 | . 1 . 1 . . . . . . 3 2 2 1 . 4 2 . . . . . . . Alerts 8 | . . . 1 1 . . . . 1 . 2 . . 1 . 1 1 . . . . . . Weapon Failures 3 | . . . . 1 . . . . . . . . . 1 1 . . . . . . . . Overload Shots . | . . . . . . . . . . . . . . . . . . . . . . . . Overflow Damage 697 | . 2 17 56 . . . . . 13 71 45 41 5 3 145 5 137 92 . . 57 8 . Projectiles 442 | . 2 . . . . . . . 12 . 31 . 5 3 145 5 107 92 . . 40 . . Explosions 127 | . . 17 . . . . . . . 71 14 . . . . . . . . . 17 8 . Melee 128 | . . . 56 . . . . . 1 . . 41 . . . . 30 . . . . . . Knockbacks 35 | . 11 . 3 . . 1 . . 1 . . 5 . . 1 . 9 1 . . 3 . . Impact 9 | . . . 2 . . 1 . . 1 . . 4 . . . . 1 . . . . . . Kinetic 21 | . 11 . . . . . . . . . . . . . 1 . 6 1 . . 2 . . Secondary 5 | . . . 1 . . . . . . . . 1 . . . . 2 . . . 1 . . Self-Inflicted Damage 238 | . . 57 . . . . . . . . . . 8 20 6 13 46 5 . . . 83 . Shots 4 | . . 2 . . . . . . . . . . . . . 1 . . . . . 1 . Rammed 53 | . 2 . 5 6 . 7 2 . 5 . . . 2 2 2 . 5 2 . . 13 . . Targets Rammed 58 | . 2 . 6 6 . 7 2 . 6 . . . 2 2 2 . 5 2 . . 16 . . Kicked . | . . . . . . . . . . . . . . . . . . . . . . . . Crushed 5 | . . . 1 . . . . . 1 . . . . . . . . . . . 3 . . Highest Temperature 490 | . 324 270 137 212 . 152 5 8 228 256 227 211 243 223 490 236 294 76 . . 259 160 . Average Temperature 65 | . 74 76 10 34 . 79 3 1 48 110 50 70 93 53 106 78 86 26 . . 79 34 . Received Heat Transfer 3662 | . 501 51 459 246 . 45 180 459 216 75 142 12 46 108 168 270 489 45 27 . 36 18 69 Effects 9 | . 1 . . . . . . . . 1 . . . . 6 1 . . . . . . . Shutdowns 2 | . . . . . . . . . . . . . . . 2 . . . . . . . . Energy Bleed 2 | . . . . . . . . . . 1 . . . . . 1 . . . . . . . Interference 2 | . 1 . . . . . . . . . . . . . 1 . . . . . . . . Matter Decay 1 | . . . . . . . . . . . . . . . 1 . . . . . . . . Short Circuit 1 | . . . . . . . . . . . . . . . 1 . . . . . . . . Damage (minor) 1 | . . . . . . . . . . . . . . . 1 . . . . . . . . Siege Activations . | . . . . . . . . . . . . . . . . . . . . . . . . Robots Corrupted . | . . . . . . . . . . . . . . . . . . . . . . . . Combat Hostiles . | . . . . . . . . . . . . . . . . . . . . . . . . Parts Fried 7 | . . . 3 . . . . . . . . . . . . . . . . . 3 1 . Impact Corruptions 9 | . . . 2 . . . . . 1 . . 3 . . . . 2 . . . 1 . . Robots Melted 1 | . . . . . . . . . 1 . . . . . . . . . . . . . . Combat Hostiles 1 | . . . . . . . . . 1 . . . . . . . . . . . . . . Parts Melted 20 | . 2 . . . . 3 5 3 3 . 3 . . . . 1 . . . . . . . Heat Transferred 11382 | . 1776 . . . . 888 1924 886 1650 . 325 1425 150 923 950 100 . . . . . 385 . Parts Sabotaged 2 | . . . . . . . . . . . . . . . . . . . . . . . 2 Parts Stolen . | . . . . . . . . . . . . . . . . . . . . . . . . Parts Stripped . | . . . . . . . . . . . . . . . . . . . . . . . . Power Chain Reactions 1 | . . . . . . . . . . . . . . . . . . . . . . 1 . Alert | -11 -10 -10 -9 -9 -9 -8 -8 -8 -8 -8 -7 -7 -7 -7 -7 -7 -6 -5 -5 -5 -4 -3 -3 ------- Run | Yrd Mat Min Mat Min Exi Min Mat Gar Mat Gar Fac Was Fac Gar Fac Gar Fac Fac Upp Upp Fac Res Arm Peak Influence 1211 | . 232 231 616 334 . 110 261 922 460 655 1060 372 626 1043 805 1211 715 310 . . 500 543 425 Initial 635 | . . 47 89 234 . . . 92 449 56 343 371 15 438 547 225 635 256 . . 67 262 284 Average 332 | . 134 196 326 226 . 32 84 567 116 445 336 265 195 855 448 800 601 244 . . 249 362 338 Maximum Alert Level 4 | . 1 1 2 1 . . 1 3 2 2 3 1 2 3 3 4 3 1 . . 2 2 2 Low Security (%) 42 | 100 84 20 29 32 . 100 87 11 87 6 50 51 65 . 3 . . 14 . . 47 . . Level 1 26 | . 15 79 31 67 . . 12 11 4 27 29 48 22 . 44 22 4 85 . . 37 76 79 Level 2 19 | . . . 39 . . . . 43 7 65 . . 11 24 40 2 95 . . . 15 23 20 Level 3 11 | . . . . . . . . 33 . . 19 . . 75 11 57 . . . . . . . Level 4 . | . . . . . . . . . . . . . . . . 17 . . . . . . . Level 5 . | . . . . . . . . . . . . . . . . . . . . . . . . High Security . | . . . . . . . . . . . . . . . . . . . . . . . . Max Security . | . . . . . . . . . . . . . . . . . . . . . . . . Squads Dispatched 66 | . 8 . 8 . . . 2 . 4 . 14 . 6 . 13 . 7 . . . 2 1 1 Investigation 24 | . 4 . 5 . . . . . 2 . 4 . 2 . 5 . . . . . 1 1 . Extermination 8 | . . . . . . . . . . . 3 . 2 . 2 . . . . . 1 . . Reinforcement 22 | . 4 . 3 . . . 2 . 1 . 5 . 2 . 1 . 3 . . . . . 1 Assault 4 | . . . . . . . . . . . . . . . 2 . 2 . . . . . . Garrison 8 | . . . . . . . . . 1 . 2 . . . 3 . 2 . . . . . . Intercept . | . . . . . . . . . . . . . . . . . . . . . . . . Searches Triggered . | . . . . . . . . . . . . . . . . . . . . . . . . Construction Impeded 3 | . . . . . . . . . . . 1 . 1 . . . 1 . . . . . . Haulers Reinforced 2 | . . . . . . . . . . . . . 1 . 1 . . . . . . . . Active Scanning Responses . | . . . . . . . . . . . . . . . . . . . . . . . . Cargo Convoy Interrupts 1 | . . . . . . . . . . . 1 . . . . . . . . . . . . Stealth | -11 -10 -10 -9 -9 -9 -8 -8 -8 -8 -8 -7 -7 -7 -7 -7 -7 -6 -5 -5 -5 -4 -3 -3 --------- Run | Yrd Mat Min Mat Min Exi Min Mat Gar Mat Gar Fac Was Fac Gar Fac Gar Fac Fac Upp Upp Fac Res Arm Distress Signals 15 | . 1 . 2 . . . 1 . 1 . . . . . 2 . 1 1 . . 5 . 1 Communications Jammed 1 | . . . . . . . . . . . . . 1 . . . . . . . . . . Distress Signals . | . . . . . . . . . . . . . . . . . . . . . . . . Times Spotted 562 | . 39 6 54 16 . 11 17 32 23 27 66 4 22 40 37 28 33 12 9 4 35 18 29 Peak Tracking Total 22 | . 4 4 5 4 . 4 7 5 3 4 22 2 6 5 5 6 16 9 4 2 12 12 19 Tactical Retreats 38 | . 2 . 4 3 . 1 1 2 1 1 . . . 1 . 2 4 2 2 . 8 1 3 Traps | -11 -10 -10 -9 -9 -9 -8 -8 -8 -8 -8 -7 -7 -7 -7 -7 -7 -6 -5 -5 -5 -4 -3 -3 ------- Run | Yrd Mat Min Mat Min Exi Min Mat Gar Mat Gar Fac Was Fac Gar Fac Gar Fac Fac Upp Upp Fac Res Arm Traps Triggered 32 | . . . 1 . . . . 7 2 7 2 . 1 2 1 6 2 . . . . 1 . Indirectly . | . . . . . . . . . . . . . . . . . . . . . . . . Trap Hack Attempts 30 | . . . . . . . 17 1 12 . . . . . . . . . . . . . . Triggered . | . . . . . . . . . . . . . . . . . . . . . . . . Disarmed . | . . . . . . . . . . . . . . . . . . . . . . . . Reprogrammed 5 | . . . . . . . 3 . 2 . . . . . . . . . . . . . . Reused . | . . . . . . . . . . . . . . . . . . . . . . . . Traps Extracted 5 | . . . . . . . 3 . 2 . . . . . . . . . . . . . . Installed . | . . . . . . . . . . . . . . . . . . . . . . . . Triggered 1 | . . . . . . . . . 1 . . . . . . . . . . . . . . Most Traps Carried 5 | . . . . . . . 3 3 5 5 5 5 5 5 5 5 5 . . . . . . Machines | -11 -10 -10 -9 -9 -9 -8 -8 -8 -8 -8 -7 -7 -7 -7 -7 -7 -6 -5 -5 -5 -4 -3 -3 ---------- Run | Yrd Mat Min Mat Min Exi Min Mat Gar Mat Gar Fac Was Fac Gar Fac Gar Fac Fac Upp Upp Fac Res Arm Machines Disabled 24 | . 1 2 . . . . . . 1 1 9 . . . 2 4 1 1 . . 2 . . Max in Single Turn 5 | . 1 1 . . . . . . 1 1 5 . . . 1 1 . 1 . . 1 . . Garrison Access 4 | . . . . . . . . . . . 1 . . . 1 . 1 . . . 1 . . Garrison Relay 14 | . . . . . . . . 2 . 5 . . . 3 . 4 . . . . . . . Phase Generator 1 | . . . . . . . . . . 1 . . . . . . . . . . . . . Machines Repaired . | . . . . . . . . . . . . . . . . . . . . . . . . Machines Dismantled 13 | . . . . . . . . 2 . 6 . . . 3 . 2 . . . . . . . Machines Sabotaged . | . . . . . . . . . . . . . . . . . . . . . . . . Overloaded Fab Kills . | . . . . . . . . . . . . . . . . . . . . . . . . Hacking | -11 -10 -10 -9 -9 -9 -8 -8 -8 -8 -8 -7 -7 -7 -7 -7 -7 -6 -5 -5 -5 -4 -3 -3 --------- Run | Yrd Mat Min Mat Min Exi Min Mat Gar Mat Gar Fac Was Fac Gar Fac Gar Fac Fac Upp Upp Fac Res Arm Machines Accessed 75 | . 6 . 13 1 2 . 3 3 10 2 6 . 6 4 6 1 3 . . . 6 2 1 Terminals 51 | . 4 . 10 1 . . 2 3 7 2 3 . 4 4 2 1 2 . . . 4 1 1 Fabricators 7 | . . . . . . . . . . . 2 . 1 . 2 . . . . . 1 1 . Repair Stations 5 | . 1 . 2 . . . . . 1 . . . . . 1 . . . . . . . . Recycling Units 1 | . 1 . . . . . . . . . . . . . . . . . . . . . . Scanalyzers 2 | . . . 1 . . . . . 1 . . . . . . . . . . . . . . Garrison Access 7 | . . . . . . . 1 . 1 . 1 . 1 . 1 . 1 . . . 1 . . Total Hacks 201 | . 18 . 44 3 2 . 9 6 32 3 16 . 14 6 23 3 5 . . . 12 3 2 Successful 98 | . 9 . 26 1 2 . 4 2 19 1 9 . 4 4 8 1 2 . . . 4 1 1 Failed 103 | . 9 . 18 2 . . 5 4 13 2 7 . 10 2 15 2 3 . . . 8 2 1 Catastrophic 18 | . 1 . 1 1 . . . . 2 . 2 . 1 1 3 1 2 . . . 3 . . Database Lockouts . | . . . . . . . . . . . . . . . . . . . . . . . . Manual 95 | . 12 . 14 6 1 . 7 . 15 . 9 . 10 2 8 . 3 . . . 5 2 1 Terminals 142 | . 15 . 31 3 . . 7 6 26 3 10 . 11 6 7 3 3 . . . 8 1 2 Fabricators 23 | . . . . . . . . . . . 5 . 1 . 13 . . . . . 2 2 . Repair Stations 15 | . 2 . 10 . . . . . 2 . . . . . 1 . . . . . . . . Recycling Units 1 | . 1 . . . . . . . . . . . . . . . . . . . . . . Scanalyzers 5 | . . . 3 . . . . . 2 . . . . . . . . . . . . . . Garrison Access 13 | . . . . . . . 2 . 2 . 1 . 2 . 2 . 2 . . . 2 . . Terminal Hacks 47 | . 6 . 12 1 2 . 1 2 9 1 2 . 1 4 2 1 . . . . 1 1 1 Record 1 | . . . . . 1 . . . . . . . . . . . . . . . . . . Robot Schematic 1 | . . . . 1 . . . . . . . . . . . . . . . . . . . Robot Analysis 7 | . 2 . 3 . . . . . 2 . . . . . . . . . . . . . . Prototype ID Bank 5 | . 4 . 1 . . . . . . . . . . . . . . . . . . . . Open Door 2 | . . . . . . . . . . . . . . 1 . 1 . . . . . . . Branch Access Points 1 | . . . . . . . . . . . . . . . . . . . . . . 1 . Emergency Access Points 2 | . . . . . . . . . . . . . . 1 . . . . . . 1 . . Terminal Index 1 | . . . . . . . . . . . 1 . . . . . . . . . . . . Alert Level 1 | . . . 1 . . . . . . . . . . . . . . . . . . . . Unreport Threat 6 | . . . 1 . . . . . 3 . . . . . 2 . . . . . . . . Locate Traps 4 | . . . 2 . . . . . 1 . . . 1 . . . . . . . . . . Patrol Status 1 | . . . . . . . . . 1 . . . . . . . . . . . . . . Recall Reinforcements 3 | . . . 2 . . . . . . . 1 . . . . . . . . . . . . Hauler Manifests 3 | . . . 1 . . . 1 . 1 . . . . . . . . . . . . . . Zone Layout 3 | . . . 1 . . . . . 1 . . . . . . . . . . . . . 1 Garrison Registry 2 | . . . . . . . . 1 . . . . . 1 . . . . . . . . . Patrol Navigation 1 | . . . . . . . . . . 1 . . . . . . . . . . . . . Security Stations 2 | . . . . . . . . 1 . . . . . 1 . . . . . . . . . Derelict Proto ID Bank 1 | . . . . . 1 . . . . . . . . . . . . . . . . . . Fabricator Hacks 8 | . . . . . . . . . . . 4 . 1 . 3 . . . . . . . . Load Schematic 4 | . . . . . . . . . . . 2 . . . 2 . . . . . . . . Build 4 | . . . . . . . . . . . 2 . 1 . 1 . . . . . . . . Repair Station Hacks 14 | . 1 . 10 . . . . . 2 . . . . . 1 . . . . . . . . Scan Component 8 | . 1 . 5 . . . . . 1 . . . . . 1 . . . . . . . . Repair 6 | . . . 5 . . . . . 1 . . . . . . . . . . . . . . Recycling Unit Hacks . | . . . . . . . . . . . . . . . . . . . . . . . . Scanalyzer 5 | . . . 3 . . . . . 2 . . . . . . . . . . . . . . Insert Component 2 | . . . 1 . . . . . 1 . . . . . . . . . . . . . . Analyze 3 | . . . 2 . . . . . 1 . . . . . . . . . . . . . . Garrison Access Hacks 9 | . . . . . . . 1 . 1 . 1 . 1 . 1 . 2 . . . 2 . . Unlock Access 4 | . . . . . . . 1 . 1 . . . 1 . 1 . . . . . . . . Seal Access 3 | . . . . . . . . . . . 1 . . . . . 1 . . . 1 . . Coupler Status 2 | . . . . . . . . . . . . . . . . . 1 . . . 1 . . Unauthorized Hacks 15 | . 2 . 1 . . . 2 . 5 . 2 . 1 . 1 . . . . . 1 . . Terminals 11 | . 1 . 1 . . . 2 . 4 . 2 . . . . . . . . . 1 . . Assimilate 1 | . . . . . . . . . 1 . . . . . . . . . . . . . . Botnet 8 | . 1 . 1 . . . 1 . 2 . 2 . . . . . . . . . 1 . . Operators 2 | . . . . . . . 1 . 1 . . . . . . . . . . . . . . Fabricators . | . . . . . . . . . . . . . . . . . . . . . . . . Repair Stations . | . . . . . . . . . . . . . . . . . . . . . . . . Recycling Units 1 | . 1 . . . . . . . . . . . . . . . . . . . . . . Tunnel 1 | . 1 . . . . . . . . . . . . . . . . . . . . . . Scanalyzers . | . . . . . . . . . . . . . . . . . . . . . . . . Garrison Access 3 | . . . . . . . . . 1 . . . 1 . 1 . . . . . . . . Reprogram 1 | . . . . . . . . . 1 . . . . . . . . . . . . . . Eject 2 | . . . . . . . . . . . . . 1 . 1 . . . . . . . . Data Cores Recovered . | . . . . . . . . . . . . . . . . . . . . . . . . Used . | . . . . . . . . . . . . . . . . . . . . . . . . Hacking Detections 62 | . 5 . 13 . . . 3 2 8 2 5 . 6 3 5 1 2 . . . 4 2 1 Full Trace Events 19 | . 3 . 4 . . . . 1 1 . 3 . 1 . 3 1 . . . . 1 1 . Feedback Events 2 | . 1 . 1 . . . . . . . . . . . . . . . . . . . . Corruption 2 | . 1 . 1 . . . . . . . . . . . . . . . . . . . . Feedback Blocked . | . . . . . . . . . . . . . . . . . . . . . . . . Robot Schematics Acquired 1 | . . . . 1 . . . . . . . . . . . . . . . . . . . Robots Built 6 | . . . . . . . . . . . 2 . 3 . 1 . . . . . . . . Authchips . | . . . . . . . . . . . . . . . . . . . . . . . . Time 287 | . . . . . . . . . . . 162 . 44 . 81 . . . . . . . . Total Robot Build Rating 15 | . . . . . . . . . . . 2 . 12 . 1 . . . . . . . . Part Schematics Acquired 2 | . . . 1 . . . . . 1 . . . . . . . . . . . . . . Parts Built . | . . . . . . . . . . . . . . . . . . . . . . . . Authchips . | . . . . . . . . . . . . . . . . . . . . . . . . Time . | . . . . . . . . . . . . . . . . . . . . . . . . Total Part Build Rating . | . . . . . . . . . . . . . . . . . . . . . . . . Parts Repaired 6 | . . . 5 . . . . . 1 . . . . . . . . . . . . . . Time 203 | . . . 171 . . . . . 32 . . . . . . . . . . . . . . Parts Recycled . | . . . . . . . . . . . . . . . . . . . . . . . . Recycled Matter . | . . . . . . . . . . . . . . . . . . . . . . . . Retrieved Matter . | . . . . . . . . . . . . . . . . . . . . . . . . Retrieved Components . | . . . . . . . . . . . . . . . . . . . . . . . . Parts Scanalyzed 2 | . . . 1 . . . . . 1 . . . . . . . . . . . . . . Part Schematics Acquired 2 | . . . 1 . . . . . 1 . . . . . . . . . . . . . . Parts Damaged . | . . . . . . . . . . . . . . . . . . . . . . . . Bothacking | -11 -10 -10 -9 -9 -9 -8 -8 -8 -8 -8 -7 -7 -7 -7 -7 -7 -6 -5 -5 -5 -4 -3 -3 ------------ Run | Yrd Mat Min Mat Min Exi Min Mat Gar Mat Gar Fac Was Fac Gar Fac Gar Fac Fac Upp Upp Fac Res Arm Used RIF Installer 5 | . . . . . . . . 1 . 2 . . . 1 . 1 . . . . . . . Command Fork 2 | . . . . . . . . . . 1 . . . . . 1 . . . . . . . Patrol Navigation 1 | . . . . . . . . . . 1 . . . . . . . . . . . . . Program Shield 1 | . . . . . . . . . . . . . . 1 . . . . . . . . . Robots Hacked 79 | . . . . . . . . . 3 4 19 6 5 15 15 8 4 . . . . . . Non-combat 16 | . . . . . . . . . 2 . 6 . 3 . 4 . 1 . . . . . . Combat 63 | . . . . . . . . . 1 4 13 6 2 15 11 8 3 . . . . . . Robot Hacks Applied 85 | . . . . . . . . . 3 4 21 8 6 15 16 8 4 . . . . . . find_chute 1 | . . . . . . . . . . . 1 . . . . . . . . . . . . ignore_repairs 1 | . . . . . . . . . . . 1 . . . . . . . . . . . . find_fabricator 3 | . . . . . . . . . . . 1 . 1 . 1 . . . . . . . . drop_inventory 4 | . . . . . . . . . . . 2 . 1 . 1 . . . . . . . . find_recycling 1 | . . . . . . . . . 1 . . . . . . . . . . . . . . map_route 1 | . . . . . . . . . 1 . . . . . . . . . . . . . . ignore_targets 8 | . . . . . . . . . . . . 8 . . . . . . . . . . . find_garrison 2 | . . . . . . . . . . . . . 1 . 1 . . . . . . . . disrupt_area 1 | . . . . . . . . . . . . . . 1 . . . . . . . . . overload_power 1 | . . . . . . . . . . . 1 . . . . . . . . . . . . amplify_resonance 2 | . . . . . . . . . . 1 1 . . . . . . . . . . . . disable_weapons 2 | . . . . . . . . . . . . . . 1 . 1 . . . . . . . reboot_system 1 | . . . . . . . . . . . . . . . 1 . . . . . . . . overwrite_iff 1 | . . . . . . . . . . . . . . 1 . . . . . . . . . formatsys_low 6 | . . . . . . . . . . . 1 . 1 . 3 . 1 . . . . . . formatsys_high 50 | . . . . . . . . . 1 3 13 . 2 12 9 7 3 . . . . . . Relay Couplers Released 67 | . . . . . . . . 9 . 21 . . 4 12 5 16 . . . . . . . Ejected 7 | . . . . . . . . . . . . . 4 . 3 . . . . . . . . Machine Destruction 60 | . . . . . . . . 9 . 21 . . . 12 2 16 . . . . . . . Attached 41 | . . . . . . . . 2 . 4 10 . 2 7 7 6 3 . . . . . . Fabnet Peak Effective % . | . . . . . . . . . . . . . . . . . . . . . . . . Robots Rewired 11 | . . . . . . . . 3 . . . . . 6 . 2 . . . . . . . Allies Hacked 1 | . . . . . . . . . . . 1 . . . . . . . . . . . . Hacks Repelled . | . . . . . . . . . . . . . . . . . . . . . . . . Allies | -11 -10 -10 -9 -9 -9 -8 -8 -8 -8 -8 -7 -7 -7 -7 -7 -7 -6 -5 -5 -5 -4 -3 -3 -------- Run | Yrd Mat Min Mat Min Exi Min Mat Gar Mat Gar Fac Was Fac Gar Fac Gar Fac Fac Upp Upp Fac Res Arm Total Allies 109 | . . 1 . . . . . 3 3 3 21 19 8 21 14 11 5 . . . . . . Largest Group 24 | . . 1 1 . . . . 3 1 4 6 24 24 16 10 10 9 . . . . . . Highest-Rated Group 626 | . . 31 31 . . . . 63 40 57 168 615 626 435 253 259 246 . . . . . . Highest-Rated Ally 40 | . . 31 31 . . . . 21 40 16 40 40 40 40 39 39 39 . . . . . . Total Orders 34 | . . . . . . . . 2 4 8 4 4 2 3 1 5 1 . . . . . . STAY 11 | . . . . . . . . 1 2 4 . 1 . 1 . 2 . . . . . . . FOLLOW 10 | . . . . . . . . 1 2 4 . 1 . 1 . 1 . . . . . . . AID 13 | . . . . . . . . . . . 4 2 2 1 1 2 1 . . . . . . Ally Attacks 739 | . . 2 16 . . . . 35 2 32 124 67 165 108 76 88 24 . . . . . . Total Damage 16222 | . . . 292 . . . . 724 66 453 2459 3213 2834 2325 1664 1703 489 . . . . . . Kills 123 | . . . 4 . . . . 6 . 4 24 5 24 23 14 16 3 . . . . . . Allies Corrupted 8 | . . . . . . . . . . . . 1 . 3 . . 4 . . . . . . Allies Melted . | . . . . . . . . . . . . . . . . . . . . . . . . Intel | -11 -10 -10 -9 -9 -9 -8 -8 -8 -8 -8 -7 -7 -7 -7 -7 -7 -6 -5 -5 -5 -4 -3 -3 ------- Run | Yrd Mat Min Mat Min Exi Min Mat Gar Mat Gar Fac Was Fac Gar Fac Gar Fac Fac Upp Upp Fac Res Arm Robot Analysis Total 7 | . 2 . 3 . . . . . 2 . . . . . . . . . . . . . . Derelict Logs Recovered 4 | . . . . 2 . . . . . . . . . . . . . . 2 . . . . Drone Launches . | . . . . . . . . . . . . . . . . . . . . . . . . Drone Recoveries . | . . . . . . . . . . . . . . . . . . . . . . . . Exploration | -11 -10 -10 -9 -9 -9 -8 -8 -8 -8 -8 -7 -7 -7 -7 -7 -7 -6 -5 -5 -5 -4 -3 -3 ------------- Run | Yrd Mat Min Mat Min Exi Min Mat Gar Mat Gar Fac Was Fac Gar Fac Gar Fac Fac Upp Upp Fac Res Arm Turns Passed 24520 | 88 2036 384 2381 1207 638 1343 1373 1350 1943 1726 1943 820 1062 1190 1490 1309 607 472 175 7 672 225 79 Spaces Moved 12640 | 49 725 125 1028 616 335 544 485 577 901 698 886 282 566 532 650 749 410 305 343 13 1205 430 186 Core 1103 | 1 . . . . . . . . . . . . . . . . 157 127 316 13 362 108 19 Treads 5002 | 48 643 . 1001 616 335 544 485 577 751 . . . . . . . . . . . 2 . . Legs . | . . . . . . . . . . . . . . . . . . . . . . . . Wheels 4998 | . 82 125 27 . . . . . 150 696 886 282 566 532 650 749 253 . . . . . . Hover 207 | . . . . . . . . . . 2 . . . . . . . 178 27 . . . . Flight 1330 | . . . . . . . . . . . . . . . . . . . . . 841 322 167 Fastest Speed 28 | 50 120 105 120 160 160 240 160 160 101 146 160 175 175 160 115 145 50 50 50 50 33 28 28 Average Speed 156 | 157 220 111 172 160 186 240 239 181 159 199 186 175 175 174 187 145 118 132 50 50 42 36 35 Slowest Speed 1085 | 160 240 120 240 160 240 240 240 240 170 1085 410 175 220 205 220 160 205 450 52 50 200 50 50 Overloaded Moves . | . . . . . . . . . . . . . . . . . . . . . . . . Propulsion Burnouts . | . . . . . . . . . . . . . . . . . . . . . . . . Robots Hopped 13 | . . . . . . . . . . . . . . . . . . . . . 10 2 1 Cave-ins Triggered . | . . . . . . . . . . . . . . . . . . . . . . . . Exploration Rate (%) 51 | 5 99 23 97 98 70 99 21 70 66 92 35 88 29 59 13 82 15 10 72 8 30 16 27 Regions Visited 23 Branch Regions 7 Pre-discovered Areas 3 | . 1 1 . . 1 . . . . . . . . . . . . . . . . . . Known Exits Taken 6 | . . . . . . . 1 . 1 . . . 1 . 1 . . . 1 . . 1 . Unknown Exits Taken 11 | 1 1 1 1 1 1 1 . . . . . . . . . . 1 1 . 1 1 . . Scrap Searched 8 | . . . . 3 . 1 . . . . . . . . . . . . 4 . . . . Spaces Dug 89 | . . . . . . . 2 . 4 14 55 . 1 . 2 3 3 1 . . 3 . 1 Terrain Destroyed 288 | . . 52 . . . . 5 . 20 17 104 1 2 1 11 24 8 7 . . 17 18 1 Melee 5 | . . . . . . . 2 . . . . . . . . . . . . . 2 . 1 Projectile 64 | . . . . . . . 3 . 20 . 6 1 2 1 11 3 8 7 . . 2 . . AOE 219 | . . 52 . . . . . . . 17 98 . . . . 21 . . . . 13 18 . Terrain Rammed . | . . . . . . . . . . . . . . . . . . . . . . . . Walls Destroyed . | . . . . . . . . . . . . . . . . . . . . . . . . Machines Disabled . | . . . . . . . . . . . . . . . . . . . . . . . . Actions | -11 -10 -10 -9 -9 -9 -8 -8 -8 -8 -8 -7 -7 -7 -7 -7 -7 -6 -5 -5 -5 -4 -3 -3 --------- Run | Yrd Mat Min Mat Min Exi Min Mat Gar Mat Gar Fac Was Fac Gar Fac Gar Fac Fac Upp Upp Fac Res Arm Total 16098 | 57 950 356 1455 761 351 573 690 754 1281 920 1097 559 623 709 859 917 490 349 344 12 1324 475 192 Wait 1681 | . 86 224 253 94 2 22 172 56 235 30 71 229 21 18 84 13 11 16 . . 36 6 2 Move 12595 | 48 724 124 1027 615 334 543 485 576 901 697 886 281 565 531 649 748 409 304 342 12 1185 425 184 Hop 12 | . . . . . . . . . . . . . . . . . . . . . 9 2 1 Pick Up 158 | 1 14 . 15 1 4 . . 13 9 17 10 2 6 18 22 14 1 . 1 . 8 2 . Fast Attach 100 | 7 2 . 6 1 1 . 2 4 7 5 7 2 2 3 2 1 3 6 1 . 21 16 1 Attach 87 | . 3 1 7 . 1 1 5 9 1 3 8 . 1 8 9 13 6 2 . . 6 3 . Detach 58 | 1 . . 4 . . . 4 2 3 6 3 1 1 1 6 5 2 3 . . 10 6 . Swap 141 | . 7 . 18 1 1 . 1 11 15 20 26 6 6 10 9 7 3 . . . . . . Drop 109 | . . . 18 2 8 . . 9 16 5 5 1 5 11 3 1 2 2 . . 20 . 1 Fire 798 | . 112 7 99 41 . . . 56 71 49 74 29 12 60 68 50 30 14 . . 11 15 . Melee 34 | . . . 2 . . . 2 7 5 5 . 8 . . . . . . . . 2 . 3 Ram 15 | . . . . . . . . . . . . . 2 2 2 . 5 2 . . 2 . . Kick . | . . . . . . . . . . . . . . . . . . . . . . . . Crush 43 | . 2 . 6 6 . 7 2 . 6 . . . . . . . . . . . 14 . . Escape Stasis 148 | . . . . . . . . 4 . 56 . . . 16 . 56 16 . . . . . . Rewire 42 | . . . . . . . . . . 2 7 . 2 21 5 3 2 . . . . . . Trap 30 | . . . . . . . 17 1 12 . . . . . . . . . . . . . . Miscellaneous 47 | . . . . . . . . 6 . 25 . . . 10 . 6 . . . . . . . Route ------- -11/Scrapyard -10/Materials (discovered 5 exits: *Mat x3 / [*Min x2]) -10/Mines -9/Materials (discovered 4 exits: *Mat x3 / *Min) -9/Mines (discovered 4 exits: *Mat x2 / *Exi / [*Zio]) -9/Exiles -8/Mines (discovered 2 exits: *Mat x2) -8/Materials -8/Garrison (discovered 3 exits: *Mat x3) -8/Materials (discovered 2 exits: *Fac / Gar) -8/Garrison (discovered 3 exits: *Fac x3) -7/Factory (discovered 4 exits: *Fac / [*Sto] / [*Low x2]) -7/Waste -7/Factory (discovered 3 exits: *Fac x2 / Gar) -7/Garrison (discovered 4 exits: *Fac x3 / *Fac) -7/Factory (discovered 2 exits: *Fac / Gar) -7/Garrison (discovered 3 exits: *Fac x3) -6/Factory (discovered 2 exits: [*Fac x2]) -5/Factory -5/Upper Caves -5/Upper Caves -4/Factory (discovered 3 exits: *Res / Upp / Ext) -3/Research (discovered 3 exits: *Arm / Tes x2) -3/Armory History --------- Turn | Location | Event 18 | -11/Scrapyard | Discovered new exit (range 16) 89 | -11/Scrapyard | Entered Materials 295 | -10/Materials | Discovered new exit (range 3) 311 | -10/Materials | Build established: Mutant 651 | -10/Materials | Discovered new exit (range 4) 1160 | -10/Materials | Core integrity fell below 50% 1304 | -10/Materials | Discovered new exit (range 13) 1497 | -10/Materials | Discovered new exit (range 10) 1509 | -10/Materials | Discovered new exit (range 16) 2125 | -10/Materials | Entered Mines 2201 | -10/Mines | Core integrity fell below 20% 2205 | -10/Mines | Escorted by a lone wolf Derelict 2218 | -10/Mines | Assembled infested the area 2223 | -10/Mines | Assisted by a Guerilla fighting off Assembled 2225 | -10/Mines | Learned location of Storage (-7) 2490 | -10/Mines | Discovered new exit (range 12) 2509 | -10/Mines | Entered Materials 2509 | -9/Materials | Accompanied by 1 ally 2509 | -9/Materials | Evolved 2 slots: Propulsion x1, Utility x1 2583 | -9/Materials | Repaired Broken Lgt. Treads 2611 | -9/Materials | Repaired Lgt. Treads 2637 | -9/Materials | Repaired Lgt. Cannon 3036 | -9/Materials | Discovered new exit (range 8) 3314 | -9/Materials | Discovered new exit (range 8) 4046 | -9/Materials | Discovered new exit (range 14) 4114 | -9/Materials | Build established: Scavenger-Mutant 4414 | -9/Materials | Build established: Mutant 4447 | -9/Materials | Discovered new exit (range 16) 4523 | -9/Materials | Repaired Med. Armor Plating 4575 | -9/Materials | Repaired Imp. Assault Rifle 4890 | -9/Materials | Entered Mines 4928 | -9/Mines | Core integrity fell below 50% 4998 | -9/Mines | Discovered new exit (range 5) 5101 | -9/Mines | Deemed a non-threat by the Exiles lab entrance 5102 | -9/Mines | Discovered new exit (range 5) 5223 | -9/Mines | A Derelict revealed a hidden shortcut to a safe place 5224 | -9/Mines | Learned Materials trap positions 5734 | -9/Mines | Discovered new exit (range 11) 5766 | -9/Mines | Received a Rocket Launcher from a helpful Derelict 5904 | -9/Mines | Learned location of 1 exit from Lower Caves 6097 | -9/Mines | Entered Exiles 6148 | -9/Exiles | Met 8R-AWN 6173 | -9/Exiles | Met EX-HEX 6252 | -9/Exiles | Met EX-DEC 6280 | -9/Exiles | Learned location of Zion (-7) 6386 | -9/Exiles | Met EX-BIN 6406 | -9/Exiles | Aligned with FarCom system 6407 | -9/Exiles | Given EX-Vault access code 6447 | -9/Exiles | Opened EX-Vault 6463 | -9/Exiles | Found AWS/Thermal 6487 | -9/Exiles | Found 0b10 Alert Chip 6540 | -9/Exiles | Warned to stay clear of 0b10 Research branches 6708 | -9/Exiles | Discovered new exit (range 12) 6735 | -9/Exiles | Stole two prototypes: AWS/Thermal, 0b10 Alert Chip 6735 | -9/Exiles | Entered Mines 7044 | -8/Mines | Discovered new exit (range 12) 8047 | -8/Mines | Discovered new exit (range 13) 8078 | -8/Mines | Entered Materials 8078 | -8/Materials | Evolved 2 slots: Utility x2 8079 | -8/Materials | Loaded intel: 10 trap records 9451 | -8/Materials | Identified exit to Garrison 9451 | -8/Materials | Entered Garrison 9583 | -8/Garrison | Triggered checkpoint 9815 | -8/Garrison | Triggered checkpoint 9835 | -8/Garrison | Triggered checkpoint 9916 | -8/Garrison | Triggered checkpoint 9921 | -8/Garrison | Build established: Scavenger-Mutant 10027 | -8/Garrison | Installed Relay Interface Framework 10163 | -8/Garrison | Triggered checkpoint 10234 | -8/Garrison | Discovered new exit (range 9) 10297 | -8/Garrison | Triggered checkpoint 10351 | -8/Garrison | Learned Materials security intel 10372 | -8/Garrison | Garrison Relay disabled 10449 | -8/Garrison | Triggered checkpoint 10465 | -8/Garrison | Triggered checkpoint 10537 | -8/Garrison | Triggered checkpoint 10588 | -8/Garrison | Lost 3 parts (1p1n1w) 10589 | -8/Garrison | Discovered new exit (range 13) 10589 | -8/Garrison | Discovered new exit (range 45) 10589 | -8/Garrison | Discovered new exit (range 78) 10611 | -8/Garrison | Garrison Relay disabled 10801 | -8/Garrison | Entered Materials 10801 | -8/Materials | Accompanied by 1 ally 10902 | -8/Materials | Build established: Bothacker-Mutant 11161 | -8/Materials | Discovered new exit (range 15) 12706 | -8/Materials | Repaired Cooling System 12737 | -8/Materials | Identified exit to Garrison 12744 | -8/Materials | Entered Garrison 12744 | -8/Garrison | Accompanied by 2 allies 12805 | -8/Garrison | Core integrity fell below 50% 12934 | -8/Garrison | Triggered checkpoint 13105 | -8/Garrison | Expanded RIF knowledge: Command Fork 13156 | -8/Garrison | Garrison Relay disabled 13316 | -8/Garrison | Triggered checkpoint 13328 | -8/Garrison | Triggered checkpoint 13356 | -8/Garrison | Triggered checkpoint 13434 | -8/Garrison | Discovered new exit (range 8) 13504 | -8/Garrison | Phase Generator disabled 13578 | -8/Garrison | Garrison Relay disabled 13702 | -8/Garrison | Garrison Relay disabled 13921 | -8/Garrison | Garrison Relay disabled 13996 | -8/Garrison | Expanded RIF knowledge: Patrol Navigation 14014 | -8/Garrison | Discovered new exit (range 15) 14252 | -8/Garrison | Triggered checkpoint 14311 | -8/Garrison | Garrison Relay disabled 14418 | -8/Garrison | Discovered new exit (range 13) 14470 | -8/Garrison | Entered Factory 14470 | -7/Factory | Accompanied by 1 ally 14470 | -7/Factory | Evolved 2 slots: Utility x2 14472 | -7/Factory | FarCom data flow suspended 14792 | -7/Factory | Garrison activated, responded to threat 14797 | -7/Factory | P-60 Hacker assimilated allied Virus 4c 14835 | -7/Factory | Lost 3 allies 14873 | -7/Factory | Lost 3 parts (1n1u1w) 15355 | -7/Factory | Discovered new exit (range 5) 15515 | -7/Factory | Fabricated M-13 Machinist? 15637 | -7/Factory | Discovered new exit (range 4) 15770 | -7/Factory | Discovered new exit (range 14) 16021 | -7/Factory | Cargo convoy interrupted 16022 | -7/Factory | P-60 Hacker assimilated allied Machinist 4a 16054 | -7/Factory | Destroyed 12 combat bots 16161 | -7/Factory | Discovered new exit (range 9) 16226 | -7/Factory | Fabricated M-13 Machinist (x1) 16413 | -7/Factory | Sucked down chute 16413 | -7/Factory | Entered Waste 16426 | -7/Waste | Spotted C-40 Crusher 16429 | -7/Waste | Spotted C-40 Crusher 16433 | -7/Waste | Spotted C-40 Crusher 16437 | -7/Waste | Spotted C-40 Crusher 16441 | -7/Waste | Spotted C-40 Crusher 16498 | -7/Waste | 6 allies followed down the chute 16546 | -7/Waste | Spotted C-40 Crusher 16572 | -7/Waste | Allies destroyed C-40 Crusher 16578 | -7/Waste | Destroyed C-40 Crusher 16600 | -7/Waste | Allies destroyed C-40 Crusher 16663 | -7/Waste | Destroyed C-40 Crusher 16683 | -7/Waste | Allies destroyed C-40 Crusher 16739 | -7/Waste | Warlord forces began an assault 16753 | -7/Waste | Found Prototype Launcher 16753 | -7/Waste | Identified Mni. Smartbomb Launcher 16917 | -7/Waste | Discovered new exit (range 16) 17233 | -7/Waste | Entered Factory 17233 | -7/Factory | Accompanied by 22 allies 17462 | -7/Factory | Fabricated L-41 Fighter? 17697 | -7/Factory | Discovered new exit (range 8) 17898 | -7/Factory | Lost 8 allies 18196 | -7/Factory | Discovered new exit (range 16) 18283 | -7/Factory | Identified exit to Garrison 18295 | -7/Factory | Entered Garrison 18295 | -7/Garrison | Accompanied by 16 allies 18327 | -7/Garrison | Triggered checkpoint 18333 | -7/Garrison | Learned Factory security intel 18359 | -7/Garrison | Discovered new exit (range 5) 18429 | -7/Garrison | Triggered checkpoint 18451 | -7/Garrison | Discovered new exit (range 66) 18451 | -7/Garrison | Discovered new exit (range 76) 18451 | -7/Garrison | Discovered new exit (range 30) 18451 | -7/Garrison | Discovered new exit (range 39) 18453 | -7/Garrison | Triggered checkpoint 18478 | -7/Garrison | Garrison Relay disabled 18597 | -7/Garrison | Triggered checkpoint 18630 | -7/Garrison | P-60 Hacker assimilated allied Guardian 4d 18656 | -7/Garrison | Lost 8 allies 18683 | -7/Garrison | Triggered checkpoint 18697 | -7/Garrison | Triggered checkpoint 18768 | -7/Garrison | Garrison Relay disabled 18799 | -7/Garrison | Lost 11 allies 18849 | -7/Garrison | Expanded RIF knowledge: Program Shield 18939 | -7/Garrison | Triggered checkpoint 19033 | -7/Garrison | Triggered checkpoint 19059 | -7/Garrison | Garrison Relay disabled 19144 | -7/Garrison | Build established: Botlord-Mutant 19230 | -7/Garrison | Lost 4 allies 19485 | -7/Garrison | Entered Factory 19485 | -7/Factory | Accompanied by 9 allies 19581 | -7/Factory | Discovered new exit (range 16) 19885 | -7/Factory | First assault squad dispatched 20073 | -7/Factory | Lost 7 allies 20296 | -7/Factory | Garrison activated, responded to threat 20407 | -7/Factory | Lost 6 allies 20709 | -7/Factory | Fabricated M-13 Machinist? 20852 | -7/Factory | Identified exit to Garrison 20975 | -7/Factory | Entered Garrison 20975 | -7/Garrison | Accompanied by 3 allies 21181 | -7/Garrison | Garrison Relay disabled 21279 | -7/Garrison | Triggered checkpoint 21310 | -7/Garrison | Destroyed 7 combat bots 21323 | -7/Garrison | Triggered checkpoint 21361 | -7/Garrison | Triggered checkpoint 21392 | -7/Garrison | Garrison Relay disabled 21453 | -7/Garrison | Discovered new exit (range 10) 21560 | -7/Garrison | Discovered new exit (range 10) 21599 | -7/Garrison | Triggered checkpoint 21608 | -7/Garrison | Core integrity fell below 50% 21627 | -7/Garrison | Garrison Relay disabled 22041 | -7/Garrison | Triggered checkpoint 22056 | -7/Garrison | Garrison Relay disabled 22098 | -7/Garrison | Discovered new exit (range 11) 22218 | -7/Garrison | Expanded RIF knowledge: Command Fork 22284 | -7/Garrison | Entered Factory 22284 | -6/Factory | Accompanied by 7 allies 22284 | -6/Factory | Evolved 2 slots: Utility x1, Weapon x1 22318 | -6/Factory | Discovered new exit (range 13) 22584 | -6/Factory | Build established: Botlord-Tank 22634 | -6/Factory | First assault squad dispatched 22725 | -6/Factory | Garrison activated, responded to threat 22780 | -6/Factory | Lost 8 allies 22783 | -6/Factory | Lost 3 parts (1n1u1w) 22828 | -6/Factory | Lost 19 parts (1p2n14u2w) 22886 | -6/Factory | Discovered new exit (range 11) 22891 | -6/Factory | Entered another Factory area 22891 | -5/Factory | Evolved 2 slots: Power x1, Propulsion x1 23105 | -5/Factory | Build established: Mutant 23352 | -5/Factory | Discovered new exit (range 19) 23363 | -5/Factory | Entered Upper Caves 23365 | -5/Upper Caves | Attracted the attention of an 0b10 checkpoint 23384 | -5/Upper Caves | Identified exit to Upper Caves 23394 | -5/Upper Caves | Learned 4 Factory zone layouts 23408 | -5/Upper Caves | Lost 3 parts (1p1n1w) 23498 | -5/Upper Caves | Encountered a Warlord checkpoint 23538 | -5/Upper Caves | Entered another Upper Caves area 23538 | -5/Upper Caves | Spotted 4N-M3L(f) 23538 | -5/Upper Caves | Spotted E4-W1E(f) 23538 | -5/Upper Caves | Discovered new exit (range 15) 23540 | -5/Upper Caves | Encountered a Master Thief 23540 | -5/Upper Caves | Encountered a Master Thief 23545 | -5/Upper Caves | Entered Factory 23545 | -4/Factory | Evolved 2 slots: Propulsion x2 23546 | -4/Factory | Identified exit to Upper Caves 23546 | -4/Factory | Identified exit to Extension 23786 | -4/Factory | Spotted B-86 Titan 23966 | -4/Factory | Build established: Scout 23996 | -4/Factory | Found Quantum Capacitor 24126 | -4/Factory | Lost 8 parts (2p4n2u) 24129 | -4/Factory | Discovered new exit (range 19) 24183 | -4/Factory | Core integrity fell below 50% 24217 | -4/Factory | Entered Research 24217 | -3/Research | Evolved 2 slots: Utility x2 24391 | -3/Research | Build established: Mutant 24420 | -3/Research | Spotted B-86 Titan 24438 | -3/Research | Identified exit to Armory 24438 | -3/Research | Identified exit to Testing 24442 | -3/Research | Core integrity fell below 50% 24442 | -3/Research | Entered Armory 24519 | -3/Armory | Core integrity fell below 20% 24521 | -3/Armory | Destroyed by X-87 Electro with Compact HERF Cannon Last Messages --------------- 24473_ Field Propulsion Array destroyed. 24476_ System corrupted: Matter fused (-9). 24477_ Holding Depot disabled. 24478_ O-32 Director: "IFF HANDSHAKE FAILED. SECURING TERMINAL." 24482_ O-32 Director uses terminal to summon reinforcements. 24482_ ALERT: Hostiles spotted, dispatching reinforcements to Terminal A010. 24482_ O-32 Director locks terminal. 24490_ W-44 Eye sends out distress signal. 24493_ Penetrated by Slug. 24493_ Slug penetrates Fabricator. 24493_ Compression Vault explodes. 24495_ Q-thruster destroyed. 24495_ Dropped Enh. Fission Core. 24511_ Q-thruster destroyed. 24512_ Xenon Bombardment Thruster destroyed. 24512_ G-67 Veteran suffers critical hit (Burn). 24519_ Shock Maul blown off. 24519_ Enh. Optical Array blown off. 24519_ E-15 Imp destroyed. Map ----- +----------------------------------------------------+ | ?????????????????????????????????????????????????? | | ?????????????????????????????????????????????????? | | ?????????????????????????????????????????????????? | | ?????????????????????????????????????????????????? | | ?????????????????????????????????????????????????? | | ?????????????????????????????????????????????????? | | ?????????????????????????????????????????????????? | | ?????????????????????????????????????????????????? | | ?????????????????????????????????????????????????? | | ?????????????????????????? ??????????????????????? | | ?????????????????????????? ??????????????????????? | | ?????????????????????????? ??????????????????????? | | ?????????????????????????? ??????????????????????? | | ????????????????????????## #?????????????????????? | | ???????????????????????? #?????????????????????? | | ???????????H????????????# #?????????????????????? | | ????????????????????????# #?????????????????????? | | ????????????????????????# #?????????????????????? | | ????????????????????????# #?????????????????????? | | ????????????????????????# #?????????????????????? | | ????????????????????????# #?????????????????????? | | ????????????????????????# #??????????????######## | | ????????????????????????# #??????????????# | | ????????????????????????# #??????######### """"" | | ????????????????????????# #???#### + """T"" | | ????????????????????????#@x#???# # "" | | ????????????????????????# ##### # | | ????????????????????????# x # """ ] | | ????????????????????????# # """ ] | | ??????????????????#####?# + """ | | ??????????????????# #/ !! # | | ??????????????????# #%/ ! !** #### | | ??????????????????# ]] +! !*= | | ??????????????????# ]] # **= | | ??????????????????# ]] ########+############ | | ??????????????????# ]] ??????????????????? | | ??????????????????# ]] ????????????????# # | | ??????????????????# ]]?????????????????# # | | ??????????????????# ?????????????????# # | | ??????????????????# ??????????????????# # | | ??????????????????# ??????????????????# # | | ??????????????????# ???????????????????# # | | ??????????????????##???????????????????# #? | | ???????????????????????????????????????# ?? | | ???????????????????????????????????????#########?? | | ?????????????????????????????????????????????????? | | | | | | | | | +----------------------------------------------------+ Best States ------------- Heat Dissipation 65 Coolant Potential 65 Energy Generation 39 Energy Capacity 430 Matter Stores 300 Matter Capacity 300 Sight Range 22 Robot Scan Range 18 Terrain Scan Range 16 Terrain Scan Density 335 Jamming Range 12 Power Amplification 30 Corruption Block 11 Armor Coverage 600 Resistance: TH 15 Core Shielding 30 Evasion (%) 64 Recoil Reduction 6 Offensive Hacking 10 Defensive Hacking 14 Relay Coupler Types 4 Relay Coupler Value 87 Authchip Count 4 Trap Extractor Capacity 8 Item Schematics ----------------- Cargo Storage Unit | -9/Materials | Scanalyzed Humpback | -8/Materials | Scanalyzed Robot Schematics ------------------ M-13 Machinist | -9/Mines | Hacked Fabricated ------------ M-13 Machinist | x1 | -7/Factory M-13 Machinist | x1 | -7/Factory L-41 Fighter | x3 | -7/Factory | Preloaded M-13 Machinist | x1 | -7/Factory Alien Tech Used ----------------- None Achievements -------------- Desperate Times Challenges ------------ None Game ------ Seed DispersionReactionCannon Manual? 0 Play Time 02:26:45 Cumulative 425.4 hours Start 2024.07.03 @ 13:02:38 End 2024.07.05 @ 21:36:19 Sessions 13 Manual Loads 0 Difficulty Rogue Special Mode None Game No. 256 Rogue 256 Adventurer 0 Explorer 0 Win Type - Total 26 Types 18/2/3/1/1/0/0/1/0 Lore% 87 Gallery% 88 Achievement% 83 Wizard Run 0 Options --------- Layout 0 ASCII 0 Keyboard 1 Movement Numpad Keybinds 0 Fullscreen 2 Font 18/SmallcapsGlow Map View 76x50 Zoom Use 0% Tactical HUD 1 Map Filters NONE Filters NONE Steam 1 RUN: 978e1e66-b253-4f16-a83b-8d834f2e1a67